lending/lending_fUSD_20260310
["ID","MTS","AMOUNT","RATE_DAILY","PERIOD"]
[408148766,1773178241561,-1872.70232,0.000198,2]
[408148767,1773178241570,-200.0,0.000198,2]
[408148768,1773178241580,-200.0,0.00019822,2]
[408148769,1773178241589,-1000.0,0.00019822,2]
[408148770,1773178241598,-500.0,0.00019833,2]
[408148771,1773178241607,-200.0,0.00019833,2]
[408148772,1773178241616,-204.83861542,0.00019833,2]
[408148773,1773178241626,-500.0,0.00019833,2]
[408148774,1773178241635,-500.0,0.00019833,2]
[408148775,1773178241645,-150.0,0.00019833,2]
[408148776,1773178241654,-150.0,0.00019833,2]
[408148777,1773178241663,-150.0,0.00019833,2]
[408148778,1773178241672,-500.0,0.00019833,2]
[408148779,1773178241681,-500.0,0.00019833,2]
[408148780,1773178241691,-323.65373692,0.00019833,2]
[408148781,1773178241702,-252.49408871,0.00019833,2]
[408148782,1773178241712,-200.0,0.00019859,2]
[408148783,1773178241721,-510.0,0.00019864,4]
[408148784,1773178241730,-4473.8803,0.00019883,2]
[408148785,1773178241740,-500.0,0.00019887,2]
[408148786,1773178241752,-250.0,0.00019887,2]
[408148787,1773178241763,-500.0,0.00019887,2]
[408148788,1773178241773,-150.0,0.00019887,2]
[408148789,1773178241783,-150.0,0.00019887,2]
[408148790,1773178241793,-150.0,0.00019887,2]
[408148791,1773178241803,-500.0,0.00019887,2]
[408148792,1773178241813,-500.0,0.00019887,2]
[408148793,1773178241822,-151.0,0.00019897,2]
[408148794,1773178241831,-500.0,0.00019899,2]
[408148795,1773178241841,-500.0,0.00019899,2]
[408148796,1773178241850,-500.0,0.00019899,2]
[408148797,1773178241859,-500.0,0.00019899,2]
[408148798,1773178241867,-500.0,0.00019899,2]
[408148799,1773178241877,-500.0,0.00019899,2]
[408148800,1773178241886,-500.0,0.00019899,2]
[408148801,1773178241895,-500.0,0.00019899,2]
[408148802,1773178241903,-500.0,0.00019899,2]
[408148803,1773178241913,-500.0,0.00019899,2]
[408148804,1773178241923,-500.0,0.00019899,2]
[408148805,1773178241934,-500.0,0.00019899,2]
[408148806,1773178241945,-500.0,0.00019899,2]
[408148807,1773178241954,-500.0,0.00019899,2]
[408148808,1773178241963,-500.0,0.00019899,2]
[408148809,1773178241975,-500.0,0.00019899,2]
[408148810,1773178241987,-471.57449154,0.00019899,2]
[408148811,1773178241996,-500.0,0.00019899,2]
[408148812,1773178242005,-500.0,0.00019899,2]
[408148813,1773178242015,-500.0,0.00019899,2]
[408148814,1773178242024,-302.61,0.00019899,2]
[408148815,1773178242035,-500.0,0.00019899,2]
[408148816,1773178242044,-674.74,0.00019899,2]
[408148817,1773178242053,-674.74,0.00019899,2]
[408148818,1773178242064,-674.74,0.00019899,2]
[408148819,1773178242073,-674.74,0.00019899,2]
[408148820,1773178242082,-674.74,0.00019899,2]
[408148821,1773178242091,-674.74,0.00019899,2]
[408148822,1773178242100,-674.74,0.00019899,2]
[408148823,1773178242111,-674.74,0.00019899,2]
[408148824,1773178242120,-674.74,0.00019899,2]
[408148825,1773178242129,-674.74,0.00019899,2]
[408148826,1773178242138,-674.74,0.00019899,2]
[408148827,1773178242147,-674.74,0.00019899,2]
[408148828,1773178242157,-674.74,0.00019899,2]
[408148829,1773178242166,-674.74,0.00019899,2]
[408148830,1773178242175,-674.74,0.00019899,2]
[408148831,1773178242186,-674.74,0.00019899,2]
[408148832,1773178242197,-674.74,0.00019899,2]
[408148833,1773178242207,-674.74,0.00019899,2]
[408148834,1773178242217,-674.74,0.00019899,2]
[408148835,1773178242228,-674.74,0.00019899,2]
[408148836,1773178242237,-674.74,0.00019899,2]
[408148837,1773178242249,-674.74,0.00019899,2]
[408148838,1773178242258,-674.74,0.00019899,2]
[408148839,1773178242267,-674.75298099,0.00019899,2]
[408148840,1773178242277,-500.0,0.00019899,2]
[408148841,1773178242286,-500.0,0.00019899,2]
[408148842,1773178242295,-500.0,0.00019899,2]
[408148843,1773178242304,-500.0,0.00019899,2]
[408148844,1773178242313,-500.0,0.00019899,2]
[408148845,1773178242323,-500.0,0.00019899,2]
[408148846,1773178242332,-500.0,0.00019899,2]
[408148847,1773178242341,-500.0,0.00019899,2]
[408148848,1773178242351,-500.0,0.00019899,2]
[408148849,1773178242360,-524.54846384,0.00019899,2]
[408148850,1773178242369,-500.0,0.00019899,2]
[408148851,1773178242379,-500.0,0.00019899,2]
[408148852,1773178242389,-500.0,0.00019899,2]
[408148853,1773178242398,-243.10314305,0.00019899,2]
[408148854,1773178242408,-300.0,0.00019899,2]
[408148855,1773178242417,-300.0,0.00019899,2]
[408148856,1773178242426,-300.0,0.00019899,2]
[408148857,1773178242435,-300.0,0.00019899,2]
[408148858,1773178242444,-300.0,0.00019899,2]
[408148859,1773178242453,-300.0,0.00019899,2]
[408148860,1773178242463,-300.0,0.00019899,2]
[408148861,1773178242472,-300.0,0.00019899,2]
[408148862,1773178242481,-300.0,0.00019899,2]
[408148863,1773178242491,-300.0,0.00019899,2]
[408148864,1773178242500,-300.0,0.00019899,2]
[408148865,1773178242510,-300.0,0.00019899,2]
[408148866,1773178242519,-302.3241753,0.00019899,2]
[408148867,1773178242529,-500.0,0.00019899,2]
[408148868,1773178242538,-500.0,0.00019899,2]
[408148869,1773178242547,-500.0,0.00019899,2]
[408148870,1773178242556,-500.0,0.00019899,2]
[408148871,1773178242566,-3000.0,0.00019899,2]
[408148872,1773178242575,-3000.0,0.00019899,2]
[408148873,1773178242584,-3000.0,0.00019899,2]
[408148874,1773178242593,-3000.0,0.00019899,2]
[408148875,1773178242602,-3000.0,0.00019899,2]
[408148876,1773178242611,-3000.0,0.00019899,2]
[408148877,1773178242620,-3000.0,0.00019899,2]
[408148878,1773178242630,-2039.62924179,0.00019899,2]
[408148879,1773178242639,-543.92655451,0.00019899,2]
[408148880,1773178242648,-258.28580029,0.00019899,2]
[408148881,1773178242658,-500.0,0.00019899,2]
[408148882,1773178242667,-500.0,0.00019899,2]
[408148883,1773178242682,-169.16706266,0.00019899,2]
[408148884,1773178242697,-500.0,0.00019899,2]
[408148885,1773178242712,-539.14909228,0.00019899,2]
[408148886,1773178242723,-500.0,0.00019899,2]
[408148887,1773178242736,-32933.015,0.000199,2]
[408148888,1773178242750,-1000.0,0.000199,2]
[408148889,1773178242763,-610.75366744,0.000199,3]
[408148890,1773178242777,-13850.70280465,0.000199,2]
[408148891,1773178242791,-5800.0,0.000199,2]
[408148892,1773178242804,-200.0,0.000199,2]
[408148893,1773178242816,-2214.62086429,0.000199,2]
[408148895,1773178242827,-1068.18077632,0.000199,2]
[408148896,1773178242841,-3202.0,0.000199,2]
[408148897,1773178242854,-4459.53,0.00019902,2]
[408148898,1773178242867,-16493.87,0.00019902,2]
[408148899,1773178242881,-200.0,0.00019906,2]
[408148900,1773178242896,-535.61378813,0.00019942,2]
[408148902,1773178242911,-250.0,0.00019942,2]
[408148905,1773178242925,-500.0,0.00019942,2]
[408148906,1773178242939,-250.0,0.00019942,2]
[408148907,1773178242953,-508.22060755,0.00019942,2]
[408148909,1773178242966,-500.0,0.00019942,2]
[408148911,1773178242979,-1279.0,0.00019945,2]
[408148914,1773178242996,-150.0,0.00019945,2]
[408148916,1773178243011,-1213.0,0.00019945,2]
[408148917,1773178243024,-922.0,0.00019945,2]
[408148918,1773178243036,-3750.0,0.00019945,2]
[408148919,1773178243048,-635.152,0.00019945,2]
[408148920,1773178243059,-414.0,0.00019945,2]
[408148921,1773178243071,-200.0,0.00019957,2]
[408148922,1773178243085,-3292.0,0.00019964,2]
[408148923,1773178243099,-216.911124,0.00019966,2]
[408148924,1773178243110,-500.0,0.00019973,2]
[408148925,1773178243122,-500.0,0.00019973,2]
[408148926,1773178243134,-302.15345577,0.00019973,2]
[408148927,1773178243148,-500.0,0.00019973,2]
[408148928,1773178243160,-525.62729725,0.00019973,2]
[408148929,1773178243171,-336.48617471,0.00019973,2]
[408148930,1773178243184,-500.0,0.00019973,2]
[408148931,1773178243197,-500.0,0.00019973,2]
[408148932,1773178243208,-150.0,0.00019973,2]
[408148933,1773178243220,-500.0,0.00019973,2]
[408148934,1773178243231,-500.0,0.00019973,2]
[408148935,1773178243244,-500.0,0.00019973,2]
[408148936,1773178243255,-500.0,0.00019973,2]
[408148937,1773178243267,-500.0,0.00019973,2]
[408148938,1773178243286,-500.0,0.00019973,2]
[408148939,1773178243298,-500.0,0.00019973,2]
[408148940,1773178243310,-401.25902058,0.00019973,2]
[408148941,1773178243321,-500.0,0.00019973,2]
[408148943,1773178243333,-500.0,0.00019973,2]
[408148945,1773178243345,-150.0,0.00019973,2]
[408148946,1773178243356,-200.0,0.0001998,2]
[408148947,1773178243368,-21577.1891384,0.00019983,2]
[408148948,1773178243380,-302884.3125857,0.00019983,2]
[408148951,1773178243392,-21038.4320511,0.00019983,2]
[408148953,1773178243405,-500.0,0.00019996,2]
[408148955,1773178243416,-500.0,0.00019997,2]
[408148958,1773178243429,-500.0,0.00019997,2]
[408148960,1773178243441,-151.0,0.00019997,2]
[408148962,1773178243454,-151.0,0.00019997,2]
[408148965,1773178243467,-500.0,0.00019997,2]
[408148966,1773178243479,-500.0,0.00019997,2]
[408148967,1773178243491,-500.0,0.00019997,2]
[408148970,1773178243503,-500.0,0.00019997,2]
[408148972,1773178243515,-500.0,0.00019997,2]
[408148974,1773178243527,-278000.7936402,0.00019998,2]
[408148976,1773178243539,-3553.5625373,0.00019998,2]
[408148979,1773178243550,-149741.9943207,0.00019998,2]
[408148983,1773178243562,-529.61791857,0.00019998,2]
[408148985,1773178243574,-300.0,0.00019999,2]
[408148987,1773178243585,-666.0,0.00019999,2]
[408148990,1773178243597,-300.0,0.00019999,2]
[408148992,1773178243609,-300.0,0.00019999,2]
[408148994,1773178243620,-700.9335269,0.00019999,2]
[408148995,1773178243633,-300.0,0.00019999,2]
[408148996,1773178243645,-500.0,0.00019999,2]
[408148997,1773178243657,-500.0,0.00019999,2]
[408148998,1773178243670,-500.0,0.00019999,2]
[408148999,1773178243683,-500.0,0.00019999,2]
[408149000,1773178243696,-500.0,0.00019999,2]
[408149001,1773178243708,-500.0,0.00019999,2]
[408149002,1773178243720,-500.0,0.00019999,2]
[408149003,1773178243731,-500.0,0.00019999,2]
[408149004,1773178243744,-500.0,0.00019999,2]
[408149005,1773178243756,-500.0,0.00019999,2]
[408149006,1773178243769,-641.04,0.00019999,2]
[408149007,1773178243781,-640.18899038,0.00019999,5]
[408149008,1773178243794,-500.0,0.00019999,2]
[408149009,1773178243806,-239.56799988,0.00019999,2]
[408149010,1773178243819,-219.56749483,0.00019999,2]
[408149011,1773178243831,-2645.0,0.0002,2]
[408149012,1773178243843,-1000.0,0.0002,7]
[408149013,1773178243856,-399095.25008842,0.0002,2]
[408149014,1773178243868,-1540.57227609,0.0002,2]
[408149015,1773178243880,-177.34568231,0.0002,2]
[408149016,1773178243891,-2168491.73060892,0.0002,2]
[408149017,1773178244969,-2365423.05230776,0.0002,2]
[408149018,1773178244986,-16605.97064,0.0002,2]
[408149041,1773178245913,-161.77123936,0.00018909,2]
[408149042,1773178245928,-1148.15392468,0.00019501,2]
[408149043,1773178245946,-2273.36813459,0.0002,2]
[408149044,1773178246085,-1015.8886881,0.00019501,2]
[408149045,1773178246095,-1026.22410889,0.00019501,2]
[408149046,1773178246105,-1033.07040716,0.000199,2]
[408149047,1773178246115,-161.77123936,0.000199,2]
[408149048,1773178246125,-8743.71857685,0.0002,2]
[408149049,1773178246142,-371.52533801,0.0002,2]
[408149050,1773178246154,-418.680849,0.0002,2]
[408149051,1773178246166,-824.0,0.0002,2]
[408149083,1773178337708,500.0,9.158e-05,2]
[408149084,1773178338186,500.0,9.158e-05,2]
[408149085,1773178341215,500.0,9.158e-05,2]
[408149086,1773178343557,500.0,9.158e-05,2]
[408149087,1773178345304,500.0,9.158e-05,2]
[408149088,1773178347333,500.0,9.158e-05,2]
[408149091,1773178615637,480.196095,0.00014087,2]
[408149092,1773178627868,340.067642,0.00014154,7]
[408149093,1773178636734,500.0,9.158e-05,2]
[408149094,1773178637205,823.30090809,9.158e-05,2]
[408149095,1773178640236,500.0,9.158e-05,2]
[408149096,1773178640866,500.0,9.158e-05,2]
[408149097,1773178642428,500.0,9.158e-05,2]
[408149098,1773178642528,500.0,9.158e-05,2]
[408149099,1773178642682,500.0,9.158e-05,2]
[408149100,1773178642762,500.0,9.158e-05,2]
[408149101,1773178642805,500.0,9.158e-05,2]
[408149102,1773178642985,500.0,9.158e-05,2]
[408149103,1773178643243,500.0,9.158e-05,2]
[408149104,1773178643704,500.0,9.158e-05,2]
[408149105,1773178644945,500.0,9.158e-05,2]
[408149106,1773178645035,500.0,9.158e-05,2]
[408149107,1773178645414,500.0,9.158e-05,2]
[408149108,1773178645523,500.0,9.158e-05,2]
[408149109,1773178645918,524.62574856,9.158e-05,2]
[408149110,1773178646008,500.41699955,9.158e-05,2]
[408149111,1773178648534,156.76,7.196e-05,2]
[408149112,1773178648750,156.76,7.749e-05,2]
[408149113,1773178648985,500.0,9.158e-05,2]
[408149114,1773178649015,156.76,8.303e-05,2]
[408149115,1773178649188,156.76,8.856e-05,2]
[408149116,1773178649811,156.76,9.41e-05,2]
[408149117,1773178649875,156.76,9.963e-05,2]
[408149118,1773178649907,500.0,9.158e-05,2]
[408149119,1773178649943,156.76,0.00010517,2]
[408149120,1773178650095,156.76,0.0001107,2]
[408149121,1773178650160,500.0,9.158e-05,2]
[408149122,1773178650305,156.76,0.00011624,2]
[408149123,1773178650526,156.76,0.00012177,2]
[408149124,1773178650613,500.0,9.158e-05,2]
[408149125,1773178650724,156.76,0.00012731,2]
[408149126,1773178650936,156.76,0.00013284,2]
[408149127,1773178651033,500.0,9.158e-05,2]
[408149128,1773178651190,156.76,0.00013838,2]
[408149129,1773178651257,500.0,9.158e-05,2]
[408149130,1773178651604,500.0,9.158e-05,2]
[408149131,1773178651717,500.0,9.158e-05,2]
[408149132,1773178652184,500.0,9.158e-05,2]
[408149133,1773178652270,500.0,9.158e-05,2]
[408149134,1773178653311,500.0,9.158e-05,2]
[408149135,1773178653341,500.0,9.158e-05,2]
[408149136,1773178653419,500.0,9.158e-05,2]
[408149137,1773178653934,500.0,9.158e-05,2]
[408149138,1773178654417,500.0,9.158e-05,2]
[408149139,1773178654860,620.70010821,9.158e-05,2]
[408149140,1773178677530,168.54,0.00011462,2]
[408149142,1773178880256,-166.0,0.00014158,2]
[408149143,1773178880283,-165.0,0.00014158,2]
[408149144,1773178880310,-600.0,0.00014187,2]
[408149145,1773178880336,-193.0,0.00014216,2]
[408149146,1773178880365,-250.0,0.00014216,2]
[408149147,1773178880392,-300.0,0.00014275,2]
[408149148,1773178880431,-156.76,0.00014391,2]
[408149149,1773178880458,-300.0,0.0001453,2]
[408149150,1773178880485,-381.28444093,0.0001453,2]
[408149151,1773178880516,-200.0,0.000146,5]
[408149152,1773178880535,-166.0,0.000147,5]
[408149153,1773178880547,-34.0,0.000147,5]
[408149154,1773178880556,-131.0,0.000147,5]
[408149155,1773178880567,-269.0,0.000147,5]
[408149156,1773178880578,-150.0,0.00014799,2]
[408149157,1773178880587,-181.0,0.00014799,2]
[408149158,1773178880599,-193.0,0.00014799,2]
[408149159,1773178880616,-250.0,0.00014799,2]
[408149160,1773178880635,-300.0,0.00014799,2]
[408149161,1773178880652,-156.76,0.00014799,2]
[408149162,1773178880664,-119.24,0.00014799,2]
[408149163,1773178880674,-180.76,0.00014799,2]
[408149164,1773178880685,-119.24,0.00014799,2]
[408149165,1773178880694,-262.04444093,0.000148,2]
[408149166,1773178880704,-200.0,0.000148,2]
[408149167,1773178880716,-183.54331814,0.000148,2]
[408149168,1773178932451,4307.0,0.00014158,2]
[408149169,1773178936617,200.0,0.00014158,2]
[408149170,1773178937259,500.0,9.158e-05,2]
[408149171,1773178937736,500.0,9.158e-05,2]
[408149172,1773178938196,500.0,9.158e-05,2]
[408149173,1773178947039,500.0,9.158e-05,2]
[408149174,1773178947538,500.0,9.158e-05,2]
[408149175,1773178948018,500.0,9.158e-05,2]
[408149176,1773178948523,500.0,9.158e-05,2]
[408149177,1773178948993,500.0,9.158e-05,2]
[408149178,1773178969897,-1276.1608,0.00014602,2]
[408149179,1773178969910,-2670.0432,0.00014602,2]
[408149180,1773178969920,-172.089,0.00014602,2]
[408149181,1773178969929,-202.08730065,0.00014706,2]
[408149182,1773178969939,-150.0,0.00014799,2]
[408149183,1773178969948,-300.0,0.00014799,2]
[408149184,1773178969957,-451.98449935,0.000148,2]
[408149186,1773179078121,1436.73,0.00011634,2]
[408149187,1773179237355,500.0,9.158e-05,2]
[408149188,1773179237804,500.0,9.158e-05,2]
[408149189,1773179238387,500.0,9.158e-05,2]
[408149190,1773179238881,500.0,9.158e-05,2]
[408149191,1773179243249,500.0,9.158e-05,2]
[408149192,1773179243882,500.0,9.158e-05,2]
[408149193,1773179244365,500.0,9.158e-05,2]
[408149194,1773179245620,500.0,9.158e-05,2]
[408149195,1773179245655,500.0,9.158e-05,2]
[408149196,1773179245732,979.29989179,9.158e-05,2]
[408149197,1773179245807,783.06526647,9.158e-05,2]
[408149198,1773179245848,500.0,9.158e-05,2]
[408149199,1773179246641,500.0,9.158e-05,2]
[408149200,1773179247127,511.49245398,9.158e-05,2]
[408149201,1773179247629,500.0,9.158e-05,2]
[408149202,1773179247943,500.0,9.158e-05,2]
[408149203,1773179250030,500.0,9.158e-05,2]
[408149204,1773179250487,500.0,9.158e-05,2]
[408149222,1773179432359,-166.0,0.00014158,2]
[408149224,1773179432368,-1141.66878426,0.00014193,2]
[408149225,1773179432377,-503.69,0.00014199,2]
[408149228,1773179432389,-250.0,0.00014228,2]
[408149230,1773179432398,-1126.84,0.00014297,2]
[408149231,1773179432408,-3630.07,0.00014549,2]
[408149234,1773179432418,-1000.0,0.000146,5]
[408149236,1773179432428,-169.16706266,0.00014698,2]
[408149238,1773179432437,-206.25191355,0.00014698,2]
[408149240,1773179432446,-388.64308646,0.00014698,2]
[408149242,1773179432455,-500.0,0.00014698,2]
[408149244,1773179432464,-500.0,0.00014698,2]
[408149246,1773179432474,-500.0,0.00014698,2]
[408149247,1773179432484,-500.0,0.00014698,2]
[408149248,1773179432495,-207.69135308,0.00014698,2]
[408149249,1773179432505,-325.00109056,0.00014698,2]
[408149250,1773179432516,-500.0,0.00014698,2]
[408149251,1773179432527,-6789.3082194,0.00014699,2]
[408149252,1773179432538,-738.41,0.00014699,2]
[408149253,1773179432550,-7167.07226802,0.00014699,2]
[408149254,1773179432564,-41241.05569908,0.00014699,2]
[408149255,1773179432575,-1254.41808677,0.00014699,2]
[408149256,1773179432586,-1027.11678612,0.00014699,2]
[408149257,1773179432597,-348.57602334,0.00014699,2]
[408149258,1773179432616,-387.6034373,0.00014699,2]
[408149259,1773179432628,-744.73038692,0.00014699,2]
[408149260,1773179432659,-445.87302508,0.00014699,2]
[408149261,1773179432670,-685.99457404,0.00014699,2]
[408149262,1773179432685,-720.22605909,0.00014699,2]
[408149263,1773179432739,-500.0,0.00014698,2]
[408149264,1773179432748,-219.62920142,0.00014699,2]
[408149265,1773179432759,-595.51496788,0.00014699,2]
[408149270,1773179438081,-500.0,0.00014698,2]
[408149271,1773179438091,-500.0,0.00014698,2]
[408149272,1773179438100,-448.23635787,0.00014698,2]
[408149273,1773179438109,-500.0,0.00014698,2]
[408149274,1773179438118,-500.0,0.00014698,2]
[408149275,1773179438128,-500.0,0.00014698,2]
[408149276,1773179438137,-557.63677509,0.00014698,2]
[408149278,1773179438146,-500.0,0.00014698,2]
[408149279,1773179438156,-601.32027401,0.00014698,2]
[408149280,1773179438166,-601.32027401,0.00014698,2]
[408149281,1773179438176,-500.0,0.00014698,2]
[408149282,1773179438185,-63465.63672519,0.00014699,2]
[408149283,1773179438218,-500.0,0.00014698,2]
[408149284,1773179438227,-601.32027401,0.00014698,2]
[408149285,1773179438236,-496.69504983,0.00014698,2]
[408149286,1773179438246,-2374168.83454035,0.00014699,2]
[408149287,1773179438255,-1200.0,0.00014699,2]
[408149288,1773179438264,-2000.0,0.000147,5]
[408149289,1773179438274,-150.0,0.00014798,2]
[408149290,1773179438284,-300.0,0.00014798,2]
[408149291,1773179438293,-1000.0,0.00014799,2]
[408149292,1773179438302,-15898.61407391,0.00014799,2]
[408149293,1773179438312,-7342.55712537,0.00014799,2]
[408149294,1773179438321,-6273.67906406,0.00014799,2]
[408149295,1773179438331,-989.24158925,0.000148,2]
[408149296,1773179438343,-908.2304509,0.000148,2]
[408149297,1773179438352,-196.35757159,0.000148,2]
[408149298,1773179438362,-541.08770397,0.000148,2]
[408149299,1773179438371,-161.23904761,0.000148,2]
[408149300,1773179438382,-235.86954065,0.000148,2]
[408149301,1773179438391,-561.82447498,0.000148,2]
[408149302,1773179438400,-3100.0,0.000148,5]
[408149303,1773179438410,-500.37976244,0.00014873,2]
[408149304,1773179438421,-500.0,0.00014873,2]
[408149306,1773179438431,-500.0,0.00014873,2]
[408149308,1773179438440,-202.88923796,0.00014873,2]
[408149310,1773179438449,-500.0,0.00014873,2]
[408149312,1773179438459,-500.0,0.00014873,2]
[408149314,1773179438468,-500.0,0.00014873,2]
[408149316,1773179438478,-500.0,0.00014873,2]
[408149318,1773179438487,-500.0,0.00014873,2]
[408149320,1773179438496,-500.0,0.00014873,2]
[408149322,1773179438506,-500.0,0.00014873,2]
[408149324,1773179438515,-500.0,0.00014873,2]
[408149325,1773179438525,-500.0,0.00014873,2]
[408149326,1773179438534,-503.57909426,0.00014873,2]
[408149327,1773179438543,-500.0,0.00014873,2]
[408149328,1773179438552,-500.0,0.00014873,2]
[408149330,1773179438564,-500.0,0.00014873,2]
[408149331,1773179438573,-150.99,0.0001489,2]
[408149333,1773179438582,-217.44279054,0.0001489,2]
[408149334,1773179438592,-151.0,0.00014897,2]
[408149335,1773179438602,-151.0,0.00014897,2]
[408149336,1773179438612,-500.0,0.00014898,2]
[408149337,1773179438622,-500.0,0.00014899,2]
[408149338,1773179438633,-1820.25,0.00014899,2]
[408149339,1773179438642,-37930.58,0.00014899,2]
[408149340,1773179438652,-9999.99,0.00014899,2]
[408149341,1773179438662,-299.99,0.00014899,2]
[408149342,1773179438671,-9999.99,0.00014899,2]
[408149343,1773179438680,-6594.12,0.00014899,2]
[408149344,1773179438690,-313.56,0.00014899,2]
[408149345,1773179438700,-14673.15,0.00014899,2]
[408149346,1773179438709,-9999.99,0.00014899,2]
[408149347,1773179438719,-73703.64,0.00014899,2]
[408149348,1773179438728,-62148.73,0.00014899,2]
[408149349,1773179438737,-9999.99,0.00014899,2]
[408149350,1773179438746,-150.99,0.00014899,2]
[408149351,1773179438756,-2002.51929351,0.00014899,2]
[408149352,1773179438767,-1095.49569653,0.00014899,5]
[408149353,1773179438777,-204.00372193,0.00014899,5]
[408149354,1773179438786,-1095.49569653,0.00014899,5]
[408149355,1773179438796,-1095.49569653,0.00014899,5]
[408149356,1773179438806,-500.0,0.00014899,2]
[408149357,1773179438815,-500.0,0.00014899,2]
[408149358,1773179438824,-500.0,0.00014899,2]
[408149359,1773179438835,-500.0,0.00014899,2]
[408149360,1773179438844,-500.0,0.00014899,2]
[408149361,1773179438853,-515.04799021,0.00014899,2]
[408149362,1773179438862,-500.0,0.00014899,2]
[408149363,1773179438872,-500.0,0.00014899,2]
[408149364,1773179438882,-500.0,0.00014899,2]
[408149365,1773179438892,-500.0,0.00014899,2]
[408149366,1773179438901,-515.94518395,0.00014899,2]
[408149367,1773179438910,-836.52,0.00014899,2]
[408149368,1773179438919,-500.0,0.00014899,2]
[408149369,1773179438930,-500.0,0.00014899,2]
[408149370,1773179438940,-309.83,0.00014899,2]
[408149371,1773179438950,-3715.38,0.00014899,2]
[408149372,1773179438959,-9999.99,0.00014899,2]
[408149373,1773179438969,-514.19444451,0.00014899,2]
[408149374,1773179438979,-554.85,0.00014899,2]
[408149375,1773179438988,-554.85,0.00014899,2]
[408149376,1773179438998,-554.85,0.00014899,2]
[408149377,1773179439007,-554.85,0.00014899,2]
[408149378,1773179439016,-554.85,0.00014899,2]
[408149379,1773179439026,-554.85,0.00014899,2]
[408149380,1773179439037,-554.85,0.00014899,2]
[408149381,1773179439047,-554.85,0.00014899,2]
[408149382,1773179439056,-554.85,0.00014899,2]
[408149383,1773179439066,-554.85,0.00014899,2]
[408149384,1773179439075,-500.0,0.00014899,2]
[408149385,1773179439084,-606.83,0.00014899,2]
[408149386,1773179439093,-500.0,0.00014899,2]
[408149387,1773179439103,-500.0,0.00014899,2]
[408149388,1773179439112,-500.0,0.00014899,2]
[408149389,1773179439121,-500.0,0.00014899,2]
[408149390,1773179439131,-500.0,0.00014899,2]
[408149391,1773179439142,-521.62861803,0.00014899,2]
[408149392,1773179439153,-500.0,0.00014899,2]
[408149393,1773179439163,-500.0,0.00014899,2]
[408149394,1773179439172,-509.45035815,0.00014899,2]
[408149395,1773179439182,-500.0,0.00014899,2]
[408149396,1773179439191,-500.0,0.00014899,2]
[408149397,1773179439200,-500.0,0.00014899,2]
[408149398,1773179439210,-500.0,0.00014899,2]
[408149399,1773179439219,-500.0,0.00014899,2]
[408149400,1773179439228,-500.0,0.00014899,2]
[408149401,1773179439237,-500.0,0.00014899,2]
[408149402,1773179439247,-500.0,0.00014899,2]
[408149403,1773179439256,-500.0,0.00014899,2]
[408149404,1773179439266,-500.0,0.00014899,2]
[408149405,1773179439275,-500.0,0.00014899,2]